Department Family,Entity,Date,Expenses Type,Expense Area,Supplier,Transaction Number,  Total  ,
Department of Health,The Christie NHS Foundation Trust,11/03/2021,PACS Support and Maintenance,Clin Support & Spec Surgery,GE MEDICAL SYSTEMS LIMITED,0000659654," 33,249.99 ",
Department of Health,The Christie NHS Foundation Trust,11/03/2021,Clinical Nurse Specialist Recharge Q4 20/21,Clin Support & Spec Surgery,MANCHESTER UNIVERSITY NHS FT,0000662022," 28,212.00 ",
Department of Health,The Christie NHS Foundation Trust,04/03/2021,Medical Equipment,Clin Support & Spec Surgery,MANCHESTER UNIVERSITY NHS FT,0000655595," 1,126,788.00 ",
Department of Health,The Christie NHS Foundation Trust,30/03/2021,Medical Equipment,Clin Support & Spec Surgery,NHS SUPPLY CHAIN,0000664247," 26,751.00 ",
Department of Health,The Christie NHS Foundation Trust,25/03/2021,Medical Equipment,Clin Support & Spec Surgery,NHS SUPPLY CHAIN,0000662892," 107,350.58 ",
Department of Health,The Christie NHS Foundation Trust,11/03/2021,Quality Control and Volume Contract,Clin Support & Spec Surgery,STOCKPORT NHS FOUNDATION TRUST,0000661425," 48,107.46 ",
Department of Health,The Christie NHS Foundation Trust,18/03/2021,Drugs,Drugs,ALCURA UK LIMITED,0000663471," 60,234.30 ",
Department of Health,The Christie NHS Foundation Trust,04/03/2021,Drugs,Drugs,BAXTER HEALTHCARE LTD,0000662505," 355,904.40 ",
Department of Health,The Christie NHS Foundation Trust,25/03/2021,Drugs,Drugs,BAXTER HEALTHCARE LTD,0000663063," 116,583.64 ",
Department of Health,The Christie NHS Foundation Trust,04/03/2021,Drugs,Drugs,BAXTER HEALTHCARE LTD,0000661016," 187,286.70 ",
Department of Health,The Christie NHS Foundation Trust,18/03/2021,Drugs,Drugs,BAXTER HEALTHCARE LTD,0000662468," 105,222.49 ",
Department of Health,The Christie NHS Foundation Trust,25/03/2021,Drugs,Drugs,BAXTER HEALTHCARE LTD,0000662469," 90,744.31 ",
Department of Health,The Christie NHS Foundation Trust,25/03/2021,Drugs,Drugs,BAXTER HEALTHCARE LTD,0000662470," 110,772.73 ",
Department of Health,The Christie NHS Foundation Trust,25/03/2021,Drugs,Drugs,BAXTER HEALTHCARE LTD,0000662472," 80,492.96 ",
Department of Health,The Christie NHS Foundation Trust,25/03/2021,Drugs,Drugs,BAXTER HEALTHCARE LTD,0000662939," 112,995.79 ",
Department of Health,The Christie NHS Foundation Trust,25/03/2021,Drugs,Drugs,BAXTER HEALTHCARE LTD,0000662942," 106,705.72 ",
Department of Health,The Christie NHS Foundation Trust,25/03/2021,Drugs,Drugs,BAXTER HEALTHCARE LTD,0000662944," 68,863.10 ",
Department of Health,The Christie NHS Foundation Trust,25/03/2021,Drugs,Drugs,BAXTER HEALTHCARE LTD,0000663583," 126,169.69 ",
Department of Health,The Christie NHS Foundation Trust,04/03/2021,Drugs,Drugs,BAXTER HEALTHCARE LTD,0000660664," 107,257.87 ",
Department of Health,The Christie NHS Foundation Trust,11/03/2021,Drugs,Drugs,BAXTER HEALTHCARE LTD,0000661974," 325,805.05 ",
Department of Health,The Christie NHS Foundation Trust,11/03/2021,Drugs,Drugs,BAXTER HEALTHCARE LTD,0000661975," 122,138.10 ",
Department of Health,The Christie NHS Foundation Trust,11/03/2021,Drugs,Drugs,BAXTER HEALTHCARE LTD,0000661976," 95,108.98 ",
Department of Health,The Christie NHS Foundation Trust,11/03/2021,Drugs,Drugs,BAXTER HEALTHCARE LTD,0000661977," 141,445.54 ",
Department of Health,The Christie NHS Foundation Trust,18/03/2021,Drugs,Drugs,BAXTER HEALTHCARE LTD,0000661978," 68,677.92 ",
Department of Health,The Christie NHS Foundation Trust,18/03/2021,Drugs,Drugs,BAXTER HEALTHCARE LTD,0000661979," 86,938.13 ",
Department of Health,The Christie NHS Foundation Trust,18/03/2021,Drugs,Drugs,BAXTER HEALTHCARE LTD,0000661980," 93,056.35 ",
Department of Health,The Christie NHS Foundation Trust,18/03/2021,Drugs,Drugs,BAXTER HEALTHCARE LTD,0000662066," 116,515.18 ",
Department of Health,The Christie NHS Foundation Trust,30/03/2021,Drugs,Drugs,BAXTER HEALTHCARE LTD,0000664050," 70,175.50 ",
Department of Health,The Christie NHS Foundation Trust,30/03/2021,Drugs,Drugs,BAXTER HEALTHCARE LTD,0000664051," 61,482.35 ",
Department of Health,The Christie NHS Foundation Trust,30/03/2021,Drugs,Drugs,BAXTER HEALTHCARE LTD,0000664052," 93,082.85 ",
Department of Health,The Christie NHS Foundation Trust,30/03/2021,Drugs,Drugs,BAXTER HEALTHCARE LTD,0000664053," 117,542.65 ",
Department of Health,The Christie NHS Foundation Trust,04/03/2021,Drugs,Drugs,BAXTER HEALTHCARE LTD,0000661014," 83,323.16 ",
Department of Health,The Christie NHS Foundation Trust,04/03/2021,Drugs,Drugs,BAXTER HEALTHCARE LTD,0000661176," 118,394.81 ",
Department of Health,The Christie NHS Foundation Trust,25/03/2021,Drugs,Drugs,BAXTER HEALTHCARE LTD,0000663465," 91,480.79 ",
Department of Health,The Christie NHS Foundation Trust,25/03/2021,Drugs,Drugs,BAXTER HEALTHCARE LTD,0000663467," 88,127.29 ",
Department of Health,The Christie NHS Foundation Trust,25/03/2021,Drugs,Drugs,BAXTER HEALTHCARE LTD,0000663468," 83,180.56 ",
Department of Health,The Christie NHS Foundation Trust,25/03/2021,Drugs,Drugs,BAXTER HEALTHCARE LTD,0000663470," 107,935.74 ",
Department of Health,The Christie NHS Foundation Trust,25/03/2021,Drugs,Drugs,BAXTER HEALTHCARE LTD,0000662945," 185,022.22 ",
Department of Health,The Christie NHS Foundation Trust,11/03/2021,Drugs,Drugs,EAST CHESHIRE NHS TRUST,0000655277," 90,661.59 ",
Department of Health,The Christie NHS Foundation Trust,11/03/2021,Drugs,Drugs,EAST CHESHIRE NHS TRUST,0000659324," 74,290.49 ",
Department of Health,The Christie NHS Foundation Trust,25/03/2021,Drugs,Drugs,HEALTHCARE AT HOME LTD,0000663558," 36,857.00 ",
Department of Health,The Christie NHS Foundation Trust,11/03/2021,Drugs,Drugs,HEALTHCARE AT HOME LTD,0000662059," 41,322.00 ",
Department of Health,The Christie NHS Foundation Trust,04/03/2021,Drugs,Drugs,HEALTHCARE AT HOME LTD,0000662060," 29,047.00 ",
Department of Health,The Christie NHS Foundation Trust,25/03/2021,Drugs,Drugs,HEALTHCARE AT HOME LTD,0000663022," 28,259.00 ",
Department of Health,The Christie NHS Foundation Trust,18/03/2021,Drugs,Drugs,HEALTHCARE AT HOME LTD,0000663555," 25,488.00 ",
Department of Health,The Christie NHS Foundation Trust,04/03/2021,Drugs,Drugs,LLOYDSPHARMACY CLINICAL HOMECARE,0000662471," 37,078.00 ",
Department of Health,The Christie NHS Foundation Trust,18/03/2021,Drugs,Drugs,MID CHESHIRE HOSPITALS NHS FT,0000658625," 160,004.84 ",
Department of Health,The Christie NHS Foundation Trust,11/03/2021,Drugs,Drugs,NOVARTIS PHARMACEUTICALS UK LTD,0000661459," 257,184.00 ",
Department of Health,The Christie NHS Foundation Trust,18/03/2021,Drugs,Drugs,THE CHRISTIE CLINIC (HCA),0000662569," 33,707.00 ",
Department of Health,The Christie NHS Foundation Trust,04/03/2021,Drugs,Drugs,THE CHRISTIE CLINIC (HCA),0000660637," 32,301.00 ",
Department of Health,The Christie NHS Foundation Trust,15/03/2021,Blood Products,Network Services,DD NHS BLOOD AND TRANSPLANT,0000661561," 188,268.30 ",
Department of Health,The Christie NHS Foundation Trust,18/03/2021,Electricity Invoice ,Network Services,EDF ENERGY,0000663314," 51,063.32 ",
Department of Health,The Christie NHS Foundation Trust,18/03/2021,Electricity Invoice ,Network Services,EDF ENERGY,0000663319," 37,539.12 ",
Department of Health,The Christie NHS Foundation Trust,25/03/2021,Medical Treatment,Network Services,GILEAD SCIENCES LTD,0000663146," 224,360.80 ",
Department of Health,The Christie NHS Foundation Trust,04/03/2021,Medical Treatment,Network Services,GILEAD SCIENCES LTD,0000659656," 224,360.80 ",
Department of Health,The Christie NHS Foundation Trust,30/03/2021,Medical Treatment,Network Services,GILEAD SCIENCES LTD,0000664118," 224,360.80 ",
Department of Health,The Christie NHS Foundation Trust,23/03/2021,Paediatric Anaesthetic Services,Network Services,MANCHESTER UNIVERSITY NHS FT,0000663376," 82,464.00 ",
Department of Health,The Christie NHS Foundation Trust,18/03/2021,Funding for M5-11 20/21 for Radiology and Proton Therapy,Network Services,MANCHESTER UNIVERSITY NHS FT,0000662229," 46,538.91 ",
Department of Health,The Christie NHS Foundation Trust,23/03/2021,Paediatric Anaesthetic Services,Network Services,MANCHESTER UNIVERSITY NHS FT,0000663392," 84,999.00 ",
Department of Health,The Christie NHS Foundation Trust,23/03/2021,Provision Charge - March 2021,Network Services,MID CHESHIRE HOSPITALS NHS FT,0000662608," 52,893.00 ",
Department of Health,The Christie NHS Foundation Trust,25/03/2021,Medical Equipment,Network Services,NHS SUPPLY CHAIN,0000662891," 22,795.00 ",
Department of Health,The Christie NHS Foundation Trust,23/03/2021,Radiology SLA 2020/21,Network Services,SALFORD ROYAL NHS FT,0000662318," 29,829.00 ",
Department of Health,The Christie NHS Foundation Trust,11/03/2021,Service Agreement,Network Services,SIEMENS HEALTHCARE LIMITED,0000661914," 49,484.00 ",
Department of Health,The Christie NHS Foundation Trust,11/03/2021,Patient Accommodation,Network Services,STAYCITY MANCHESTER LTD,0000662442," 110,205.89 ",
Department of Health,The Christie NHS Foundation Trust,25/03/2021,Patient Accommodation,Network Services,STAYCITY MANCHESTER LTD,0000663726," 94,871.09 ",
Department of Health,The Christie NHS Foundation Trust,11/03/2021,Christie Chemotherapy SLA M10-12 ,Network Services,STOCKPORT NHS FOUNDATION TRUST,0000661656," 92,151.00 ",
Department of Health,The Christie NHS Foundation Trust,18/03/2021,Clinical Activity Charge ,Network Services,WRIGHTINGTON WIGAN AND LEIGH NHS FT,0000662130," 277,691.07 ",
Department of Health,The Christie NHS Foundation Trust,11/03/2021,Management Services - January 2021,Christie Pathology Partner,CPP FACILITIES LLP,0000662588," 259,722.84 ",
Department of Health,The Christie NHS Foundation Trust,18/03/2021,Management Services - April 2021,Christie Pathology Partner,CPP FACILITIES LLP,0000663436," 180,459.89 ",
Department of Health,The Christie NHS Foundation Trust,04/03/2021,Management Services - March 2021,Christie Pathology Partner,CPP FACILITIES LLP,0000661738," 180,459.89 ",
Department of Health,The Christie NHS Foundation Trust,04/03/2021,Pathology Testing Services - March 2021,Christie Pathology Partner,THE CHRISTIE PATHOLOGY PARTNERSHIP LLP,0000661736," 379,726.40 ",
Department of Health,The Christie NHS Foundation Trust,11/03/2021,Pathology Testing Services - January 2021,Christie Pathology Partner,THE CHRISTIE PATHOLOGY PARTNERSHIP LLP,0000662587," 455,427.27 ",
Department of Health,The Christie NHS Foundation Trust,18/03/2021,Pathology Testing Services -  April 2021,Christie Pathology Partner,THE CHRISTIE PATHOLOGY PARTNERSHIP LLP,0000663434," 379,726.40 ",
Department of Health,The Christie NHS Foundation Trust,11/03/2021,PFB Member Contribution 2020/21,Trust Administration,MANCHESTER UNIVERSITY NHS FT,0000662012," 34,366.00 ",
Department of Health,The Christie NHS Foundation Trust,11/03/2021,External Audit Fee,Finance & Business Developm,GRANT THORNTON UK LLP,0000661582," 26,700.00 ",
Department of Health,The Christie NHS Foundation Trust,08/03/2021, Council Tax,Estates & Facilities,DD M/CR CITY COUNCIL (RATES),0000663059," 75,579.00 ",
Department of Health,The Christie NHS Foundation Trust,25/03/2021,Smart Energy Charges,Estates & Facilities,VITAL ENERGI SOLUTIONS LTD,0000659823," 79,980.81 ",
Department of Health,The Christie NHS Foundation Trust,25/03/2021,Smart Energy Charges,Estates & Facilities,VITAL ENERGI SOLUTIONS LTD,0000662227," 79,338.43 ",
Department of Health,The Christie NHS Foundation Trust,25/03/2021,Smart Energy Charges,Estates & Facilities,VITAL ENERGI SOLUTIONS LTD,0000662806," 108,827.16 ",
Department of Health,The Christie NHS Foundation Trust,11/03/2021,Smart Energy Charges,Estates & Facilities,VITAL ENERGI SOLUTIONS LTD,0000658307," 98,905.24 ",
Department of Health,The Christie NHS Foundation Trust,23/03/2021,Education & Training Recharges ,Other Income Levies and Gra,MANCHESTER UNIVERSITY NHS FT,0000644845," 51,479.00 ",
Department of Health,The Christie NHS Foundation Trust,23/03/2021,Education & Training Recharges ,Other Income Levies and Gra,MANCHESTER UNIVERSITY NHS FT,0000653806," 51,479.00 ",
Department of Health,The Christie NHS Foundation Trust,23/03/2021,Investment Development Fund,Other Income Levies and Gra,SALFORD ROYAL NHS FT,0000647995," 100,000.00 ",
Department of Health,The Christie NHS Foundation Trust,25/03/2021,PET-CT Outsourced Appointments,Christie Medical Physics,ALLIANCE MEDICAL LTD,0000662963," 201,105.00 ",
Department of Health,The Christie NHS Foundation Trust,30/03/2021,PET-CT Recharge - January 2021,Christie Medical Physics,ALLIANCE MEDICAL LTD,0000664133," 25,020.00 ",
Department of Health,The Christie NHS Foundation Trust,25/03/2021,Drugs,Christie Medical Physics,ALLIANCE MEDICAL RADIOPHARMACY LIMITED,0000664002," 31,748.34 ",
Department of Health,The Christie NHS Foundation Trust,11/03/2021,Drugs,Christie Medical Physics,ALLIANCE MEDICAL RADIOPHARMACY LIMITED,0000662620," 31,184.76 ",
Department of Health,The Christie NHS Foundation Trust,04/03/2021,Lighting Installations ,Capital,A COPELAND GROUP LTD,0000660619," 61,468.19 ",
Department of Health,The Christie NHS Foundation Trust,30/03/2021,Car Park Construction Works,Capital,AECOM LIMITED,0000664509," 23,597.50 ",
Department of Health,The Christie NHS Foundation Trust,30/03/2021,Software IT Consultancy Contract,Capital,AIRE LOGIC LIMITED,0000664404," 56,340.00 ",
Department of Health,The Christie NHS Foundation Trust,30/03/2021,Software IT Consultancy Contract,Capital,AIRE LOGIC LIMITED,0000664400," 28,170.00 ",
Department of Health,The Christie NHS Foundation Trust,30/03/2021,Software IT Consultancy Contract,Capital,AIRE LOGIC LIMITED,0000664403," 56,340.00 ",
Department of Health,The Christie NHS Foundation Trust,30/03/2021,Software IT Consultancy Contract,Capital,AIRE LOGIC LIMITED,0000664399," 56,340.00 ",
Department of Health,The Christie NHS Foundation Trust,30/03/2021,Software IT Consultancy Contract,Capital,AIRE LOGIC LIMITED,0000664401," 56,340.00 ",
Department of Health,The Christie NHS Foundation Trust,30/03/2021,Software IT Consultancy Contract,Capital,AIRE LOGIC LIMITED,0000664402," 56,340.00 ",
Department of Health,The Christie NHS Foundation Trust,30/03/2021,Software IT Consultancy Contract,Capital,AIRE LOGIC LIMITED,0000664283," 112,680.00 ",
Department of Health,The Christie NHS Foundation Trust,25/03/2021,Modernisation of Passenger Lift,Capital,ANSA ELEVATORS LTD,0000662407," 63,420.00 ",
Department of Health,The Christie NHS Foundation Trust,25/03/2021,Project Management Fee,Capital,ARCADIS LLP,0000662636," 60,268.99 ",
Department of Health,The Christie NHS Foundation Trust,30/03/2021,Professional Services Fee for Paterson Redevelopment Project,Capital,AVISON YOUNG (GVA),0000663599," 34,680.00 ",
Department of Health,The Christie NHS Foundation Trust,30/03/2021,Professional Services Fee for Paterson Redevelopment Project,Capital,AVISON YOUNG (GVA),0000658742," 32,760.00 ",
Department of Health,The Christie NHS Foundation Trust,04/03/2021,Proton Beam Therapy Unit Works,Capital,DODD GROUP (MIDLANDS) LTD,0000661341," 30,123.36 ",
Department of Health,The Christie NHS Foundation Trust,04/03/2021,Construction Works,Capital,F PARKINSON LTD,0000661853," 32,541.30 ",
Department of Health,The Christie NHS Foundation Trust,18/03/2021,Construction Works,Capital,F PARKINSON LTD,0000662929," 114,684.00 ",
Department of Health,The Christie NHS Foundation Trust,25/03/2021,Medical Equipment,Capital,"FUJIFILM SONOSITE, LTD.",0000662846," 68,268.00 ",
Department of Health,The Christie NHS Foundation Trust,25/03/2021,Radiotherapy Construction Works,Capital,INGHAM AND GARNER LTD,0000663432," 33,833.33 ",
Department of Health,The Christie NHS Foundation Trust,11/03/2021,Paterson Redevelopment Project Construction Works,Capital,INTEGRATED HEALTH PROJECTS,0000662593," 1,823,365.94 ",
Department of Health,The Christie NHS Foundation Trust,25/03/2021,Gas Works,Capital,MEDWAY HEATING BOLTON LTD,0000663083," 26,976.97 ",
Department of Health,The Christie NHS Foundation Trust,04/03/2021,Gas Works,Capital,MEDWAY HEATING BOLTON LTD,0000661391," 30,147.12 ",
Department of Health,The Christie NHS Foundation Trust,30/03/2021,Medical Equipment,Capital,PHILIPS HEALTHCARE,0000664319," 301,198.06 ",
Department of Health,The Christie NHS Foundation Trust,30/03/2021,Medical Equipment,Capital,PTW UK LTD,0000664164," 40,578.00 ",
Department of Health,The Christie NHS Foundation Trust,30/03/2021,Medical Equipment,Capital,TERUMO BCT EUROPE NV,0000664115," 124,771.02 ",
Department of Health,The Christie NHS Foundation Trust,11/03/2021,MACCLESFIELD Construction Works,Capital,VINCI CONSTRUCTION UK LIMITED,0000662595," 454,311.60 ",
Department of Health,The Christie NHS Foundation Trust,30/03/2021,Christie Electricity Charges,Capital,VITAL ENERGI SOLUTIONS LTD,0000664561," 1,355,823.60 ",
Department of Health,The Christie NHS Foundation Trust,18/03/2021,Funding for Equipment Support,Manchester Cancer,SALFORD ROYAL NHS FT,0000662163," 30,000.00 ",
Department of Health,The Christie NHS Foundation Trust,23/03/2021,Funding for Equipment Support,Manchester Cancer,SALFORD ROYAL NHS FT,0000663165," 50,000.00 ",
Department of Health,The Christie NHS Foundation Trust,18/03/2021,Research Services ,Manchester Cancer,UNIVERSITY OF MANCHESTER,0000660038," 28,206.00 ",
Department of Health,The Christie NHS Foundation Trust,11/03/2021,Clinical Activity Charge ,Manchester Cancer,WRIGHTINGTON WIGAN AND LEIGH NHS FT,0000662101," 100,000.00 ",
Department of Health,The Christie NHS Foundation Trust,18/03/2021,Printer Charge ,Digital Services,APOGEE CORPORATION LTD,0000662654," 37,543.71 ",
Department of Health,The Christie NHS Foundation Trust,11/03/2021,Computer Software and Support,Digital Services,EUROPEAN ELECTRONIQUE LTD,0000661550," 30,772.22 ",
Department of Health,The Christie NHS Foundation Trust,25/03/2021,Executive Programs Member - March 2021 to February 2022,Digital Services,GARTNER UK LIMITED,0000663144," 51,558.33 ",
Department of Health,The Christie NHS Foundation Trust,11/03/2021,Computer Equipment,Digital Services,HP INC UK LIMITED,0000661473," 36,831.65 ",
Department of Health,The Christie NHS Foundation Trust,04/03/2021,Computer Equipment,Digital Services,HP INC UK LIMITED,0000660894," 56,282.40 ",
Department of Health,The Christie NHS Foundation Trust,04/03/2021,System Support,Digital Services,SOFTCAT PLC,0000661427," 48,942.70 ",
Department of Health,The Christie NHS Foundation Trust,25/03/2021,Software Purchase,Digital Services,SOFTCAT PLC,0000662405," 49,920.00 ",
Department of Health,The Christie NHS Foundation Trust,25/03/2021,Software Licence,Digital Services,SOFTCAT PLC,0000663372," 143,542.37 ",
Department of Health,The Christie NHS Foundation Trust,18/03/2021,Software Rental and Support,Digital Services,SOFTCAT PLC,0000662160," 33,660.00 ",
Department of Health,The Christie NHS Foundation Trust,04/03/2021,System Support Subscription - March 2021,Digital Services,SYSTEM C HEALTHCARE,0000661439," 23,348.48 ",
Department of Health,The Christie NHS Foundation Trust,25/03/2021,System Support Subscription - April 2021,Digital Services,SYSTEM C HEALTHCARE,0000662947," 23,362.71 ",
Department of Health,The Christie NHS Foundation Trust,31/03/2021,Capital Contribution towards project,The Christie NHS FT Balance,HCA HEALTHCARE UK,0000664562," 443,068.80 ",
Department of Health,The Christie NHS Foundation Trust,04/03/2021,All Wards & Departments,The Christie NHS FT Balance,NHS SUPPLY CHAIN,0000662230," 63,637.22 ",
Department of Health,The Christie NHS Foundation Trust,04/03/2021,All Wards & Departments,The Christie NHS FT Balance,NHS SUPPLY CHAIN,0000662204," 55,211.52 ",
Department of Health,The Christie NHS Foundation Trust,25/03/2021,All Wards & Departments,The Christie NHS FT Balance,NHS SUPPLY CHAIN,0000662582," 60,437.78 ",
Department of Health,The Christie NHS Foundation Trust,25/03/2021,All Wards & Departments,The Christie NHS FT Balance,NHS SUPPLY CHAIN,0000663087," 52,474.46 ",
Department of Health,The Christie NHS Foundation Trust,11/03/2021,All Wards & Departments,The Christie NHS FT Balance,NHS SUPPLY CHAIN,0000662232," 77,754.02 ",
Department of Health,The Christie NHS Foundation Trust,04/03/2021,All Wards & Departments,The Christie NHS FT Balance,NHS SUPPLY CHAIN,0000662233," 61,018.88 ",
Department of Health,The Christie NHS Foundation Trust,04/03/2021,All Wards & Departments,The Christie NHS FT Balance,NHS SUPPLY CHAIN,0000662234," 77,460.69 ",
Department of Health,The Christie NHS Foundation Trust,11/03/2021,All Wards & Departments,The Christie NHS FT Balance,NHS SUPPLY CHAIN,0000662235," 87,274.33 ",
Department of Health,The Christie NHS Foundation Trust,18/03/2021,All Wards & Departments,The Christie NHS FT Balance,NHS SUPPLY CHAIN,0000662237," 70,729.67 ",
Department of Health,The Christie NHS Foundation Trust,04/03/2021,All Wards & Departments,The Christie NHS FT Balance,NHS SUPPLY CHAIN,0000662239," 90,523.69 ",
